fUSD/lending_fUSD_20250521
["ID","MTS","AMOUNT","RATE_DAILY","PERIOD"]
[361786167,1747786253960,-160.900395,0.00014508,2]
[361786168,1747786253970,-160.900395,0.00014508,2]
[361786169,1747786253980,-1207.156888,0.00014508,2]
[361786170,1747786253990,-1207.156888,0.00014508,2]
[361786171,1747786254000,-1000.0,0.00014728,2]
[361786172,1747786254010,-951.44,0.00014785,2]
[361786173,1747786254020,-1500.0,0.00014795,2]
[361786174,1747786254031,-641.06657663,0.00014795,2]
[361786175,1747786254042,-501.59182019,0.00014795,2]
[361786176,1747786254052,-500.0,0.00014795,2]
[361786177,1747786254063,-501.07140179,0.00014795,2]
[361786178,1747786254073,-151.0,0.00014925,2]
[361786179,1747786254083,-320.427893,0.00014925,2]
[361786180,1747786254094,-320.427893,0.00014925,2]
[361786181,1747786254104,-409.539964,0.00014925,2]
[361786182,1747786254115,-409.539964,0.00014925,2]
[361786183,1747786254125,-180.595311,0.00014925,2]
[361786184,1747786254135,-151.0,0.00014925,2]
[361786185,1747786254147,-151.0,0.00014925,2]
[361786186,1747786254157,-166.93,0.00014933,2]
[361786187,1747786254167,-1277.40054118,0.00014969,2]
[361786188,1747786254178,-18841.4716161,0.00014988,2]
[361786189,1747786254188,-151.0,0.00014998,2]
[361786190,1747786254199,-163.62757,0.00014998,2]
[361786191,1747786254210,-252.81243,0.00014998,2]
[361786192,1747786254219,-252.81243,0.00014998,2]
[361786193,1747786254229,-415.539543,0.00014998,2]
[361786194,1747786254238,-415.539543,0.00014998,2]
[361786195,1747786254249,-151.0,0.00014998,2]
[361786196,1747786254260,-151.0,0.00014998,2]
[361786197,1747786254270,-342.967213,0.00014998,2]
[361786198,1747786254281,-342.967213,0.00014998,2]
[361786199,1747786254292,-151.0,0.00014998,2]
[361786200,1747786254303,-187.284156,0.00014998,2]
[361786201,1747786254313,-187.284156,0.00014998,2]
[361786202,1747786254323,-175.699588,0.00014998,2]
[361786203,1747786254334,-175.699588,0.00014998,2]
[361786204,1747786254345,-170.562,0.00015,2]
[361786205,1747786254356,-250.0,0.00015,2]
[361786206,1747786254366,-150.0,0.00015068,2]
[361786207,1747786254376,-151.0,0.0001525,2]
[361786208,1747786254386,-151.0,0.0001525,2]
[361786209,1747786254397,-151.0,0.0001525,2]
[361786210,1747786254408,-2000.0,0.00015342,2]
[361786211,1747786254419,-629.69,0.00015452,2]
[361786212,1747786254431,-166.93,0.00015481,2]
[361786213,1747786254442,-2351.0,0.00015517,2]
[361786214,1747786254452,-163.6,0.000157,2]
[361786215,1747786254462,-181.877,0.00015731,2]
[361786216,1747786254472,-181.877,0.00015731,2]
[361786217,1747786254481,-151.0,0.00015731,2]
[361786218,1747786254492,-151.0,0.00015731,2]
[361786219,1747786254502,-264.361749,0.00015731,2]
[361786220,1747786254512,-151.0,0.00015731,2]
[361786221,1747786254523,-151.0,0.00015731,2]
[361786222,1747786254533,-169.573021,0.00015731,2]
[361786223,1747786254544,-151.0,0.00015731,2]
[361786224,1747786254554,-164.328734,0.00015731,2]
[361786225,1747786254565,-151.0,0.00015731,2]
[361786226,1747786254575,-231.821242,0.00015731,2]
[361786227,1747786254585,-231.821242,0.00015731,2]
[361786228,1747786254594,-5607.553736,0.00015731,2]
[361786229,1747786254605,-5607.553736,0.00015731,2]
[361786230,1747786254615,-151.0,0.00015731,2]
[361786231,1747786254626,-2500.0,0.0001589,2]
[361786232,1747786254636,-151.0,0.00015976,2]
[361786233,1747786254646,-2014.219479,0.00015976,2]
[361786234,1747786254655,-151.0,0.00015976,2]
[361786235,1747786254665,-151.0,0.00015976,2]
[361786236,1747786254676,-314.957482,0.00015976,2]
[361786237,1747786254686,-314.957482,0.00015976,2]
[361786238,1747786254696,-151.0,0.00015976,2]
[361786239,1747786254706,-151.0,0.00015976,2]
[361786240,1747786254717,-365.612112,0.00015976,2]
[361786241,1747786254727,-365.612112,0.00015976,2]
[361786242,1747786254737,-151.0,0.00015976,2]
[361786243,1747786254751,-151.0,0.00015976,2]
[361786244,1747786254761,-151.0,0.00015976,2]
[361786245,1747786254772,-151.0,0.00015976,2]
[361786246,1747786254782,-1277.40054118,0.00016003,2]
[361786247,1747786254794,-160.55651524,0.0001601,2]
[361786248,1747786254805,-331.64307338,0.0001601,2]
[361786249,1747786254815,-271.52818243,0.0001601,2]
[361786250,1747786254826,-500.16400922,0.0001601,2]
[361786251,1747786254836,-500.16472725,0.0001601,2]
[361786252,1747786254847,-1000.0,0.00016201,2]
[361786253,1747786254858,-951.44,0.00016427,2]
[361786254,1747786254869,-151.0,0.00016438,2]
[361786255,1747786254879,-151.0,0.00016438,2]
[361786256,1747786254889,-150.0,0.00016438,2]
[361786257,1747786254899,-151.0,0.00016438,2]
[361786258,1747786254909,-500.0,0.00016438,2]
[361786259,1747786254920,-2044.92328672,0.00016438,2]
[361786260,1747786254931,-828.0,0.00016449,2]
[361786261,1747786254941,-7079.07913115,0.000165,2]
[361786262,1747786254952,-7398.25613365,0.00016508,2]
[361786263,1747786254962,-12865.11766238,0.00016508,2]
[361786264,1747786254971,-222.7525941,0.00016744,2]
[361786265,1747786254981,-300.0,0.00017,2]
[361786266,1747786254991,-1277.40054118,0.00017038,2]
[361786267,1747786255001,-3292.0,0.00017069,2]
[361786268,1747786255012,-208.0,0.00017307,6]
[361786269,1747786255023,-151.0,0.00017555,2]
[361786270,1747786255033,-151.0,0.00017555,2]
[361786271,1747786255044,-151.0,0.00017555,2]
[361786272,1747786255054,-500.13831292,0.00017673,2]
[361786273,1747786255064,-500.0,0.00017673,2]
[361786274,1747786255074,-502.98520632,0.00017673,2]
[361786275,1747786255084,-190.4,0.00017674,2]
[361786276,1747786255094,-1000.0,0.00017674,2]
[361786277,1747786255104,-320.427893,0.00017808,2]
[361786278,1747786255114,-320.427893,0.00017808,2]
[361786279,1747786255124,-298.482542,0.00017808,2]
[361786280,1747786255134,-228.396671,0.00017808,2]
[361786281,1747786255144,-228.396671,0.00017808,2]
[361786282,1747786255154,-151.0,0.00017808,2]
[361786283,1747786255164,-150.0,0.00017808,2]
[361786284,1747786255464,-161.7504817,0.00017989,2]
[361786285,1747786255475,-472.37563887,0.00017989,2]
[361786286,1747786255486,-4438.84110002,0.0001799,2]
[361786287,1747786255496,-151.0,0.0001799,2]
[361786288,1747786255507,-951.44,0.0001807,2]
[361786289,1747786255517,-1277.40054118,0.00018072,2]
[361786290,1747786255527,-151.0,0.00018096,2]
[361786291,1747786255538,-151.0,0.00018096,2]
[361786292,1747786255548,-5517.949549,0.00018099,2]
[361786293,1747786255557,-502.37876978,0.00018221,2]
[361786294,1747786255568,-151.0,0.00018228,2]
[361786295,1747786255578,-409.539964,0.00018533,2]
[361786296,1747786255588,-409.539964,0.00018533,2]
[361786297,1747786255599,-151.0,0.00018533,2]
[361786298,1747786255609,-152.723447,0.00018533,2]
[361786299,1747786255620,-342.967213,0.00018533,2]
[361786300,1747786255631,-342.967213,0.00018533,2]
[361786301,1747786255641,-151.0,0.00018533,2]
[361786302,1747786255652,-187.284156,0.00018533,2]
[361786303,1747786255662,-187.284156,0.00018533,2]
[361786304,1747786255672,-175.699588,0.00018533,2]
[361786305,1747786255683,-175.699588,0.00018533,2]
[361786306,1747786255694,-299.99,0.00018533,4]
[361786307,1747786255704,-5537.51,0.00018533,2]
[361786308,1747786255715,-828.0,0.00018713,2]
[361786309,1747786255725,-1407.0,0.00018776,2]
[361786310,1747786255735,-350.0,0.00019,2]
[361786311,1747786255750,-1277.40054118,0.00019107,2]
[361786312,1747786255760,-151.0,0.00019107,2]
[361786313,1747786255770,-151.0,0.00019107,2]
[361786314,1747786255780,-151.0,0.00019107,2]
[361786315,1747786255791,-163.786737,0.00019107,2]
[361786316,1747786255801,-151.0,0.00019107,2]
[361786317,1747786255811,-153.756802,0.00019107,2]
[361786318,1747786255824,-153.756802,0.00019107,2]
[361786319,1747786255834,-160.900395,0.00019107,2]
[361786320,1747786255845,-160.900395,0.00019107,2]
[361786321,1747786255855,-1207.156888,0.00019107,2]
[361786322,1747786255866,-1207.156888,0.00019107,2]
[361786323,1747786255876,-252.81243,0.00019178,2]
[361786324,1747786255886,-252.81243,0.00019178,2]
[361786325,1747786255896,-415.539543,0.00019178,2]
[361786326,1747786255907,-415.539543,0.00019178,2]
[361786327,1747786255917,-150.0,0.00019178,2]
[361786328,1747786255928,-4000.0,0.00019178,2]
[361786329,1747786255938,-151.0,0.00019178,2]
[361786330,1747786255948,-151.0,0.00019178,2]
[361786331,1747786255958,-7398.25613365,0.00019417,2]
[361786332,1747786255968,-12865.11766238,0.00019417,2]
[361786333,1747786255978,-826.395756,0.00019417,2]
[361786334,1747786255988,-826.395756,0.00019417,2]
[361786335,1747786255998,-951.44,0.00019713,2]
[361786336,1747786256008,-222.7525941,0.00019888,2]
[361786337,1747786256018,-4759.10895327,0.000199,3]
[361786338,1747786256028,-181.877,0.000199,2]
[361786339,1747786256038,-181.877,0.000199,2]
[361786340,1747786256048,-151.0,0.000199,2]
[361786341,1747786256058,-151.0,0.000199,2]
[361786342,1747786256068,-25777.9059225,0.00019972,2]
[361786343,1747786256078,-182.287037,0.00019972,2]
[361786344,1747786256088,-151.0,0.00019972,2]
[361786345,1747786256099,-151.0,0.00019972,2]
[361786346,1747786256108,-176.32513,0.00019972,2]
[361786347,1747786256119,-151.0,0.00019972,2]
[361786348,1747786256130,-151.0,0.00019972,2]
[361786349,1747786256139,-291.768511,0.00019972,2]
[361786350,1747786256150,-291.768511,0.00019972,2]
[361786351,1747786256160,-590.227762,0.00019972,2]
[361786352,1747786256170,-590.227762,0.00019972,2]
[361786353,1747786256181,-177.280068,0.00019972,2]
[361786354,1747786256191,-177.280068,0.00019972,2]
[361786355,1747786256200,-151.0,0.00019972,2]
[361786356,1747786256211,-1250.677821,0.00019972,2]
[361786357,1747786256221,-1250.677821,0.00019972,2]
[361786358,1747786256231,-151.0,0.00019986,2]
[361786359,1747786256241,-151.0,0.00019986,2]
[361786360,1747786256251,-415.539543,0.00019986,2]
[361786361,1747786256261,-415.539539,0.00019986,2]
[361786362,1747786256270,-151.0,0.00019986,2]
[361786363,1747786256280,-342.967213,0.00019986,2]
[361786364,1747786256290,-342.967213,0.00019986,2]
[361786365,1747786256299,-228.396671,0.00019986,2]
[361786366,1747786256309,-228.396671,0.00019986,2]
[361786367,1747786256318,-187.284156,0.00019986,2]
[361786368,1747786256328,-187.284156,0.00019986,2]
[361786369,1747786256338,-151.0,0.00019986,2]
[361786370,1747786256347,-151.0,0.00019986,2]
[361786371,1747786256357,-175.699588,0.00019986,2]
[361786372,1747786256366,-175.699588,0.00019986,2]
[361786373,1747786256376,-2014.219479,0.00019986,2]
[361786374,1747786256386,-151.0,0.00019986,2]
[361786375,1747786256395,-151.0,0.00019986,2]
[361786376,1747786256405,-169.4081,0.00019986,2]
[361786377,1747786256414,-314.957482,0.00019986,2]
[361786378,1747786256425,-314.957482,0.00019986,2]
[361786379,1747786256435,-151.0,0.00019986,2]
[361786380,1747786256445,-151.0,0.00019986,2]
[361786381,1747786256456,-151.0,0.00019986,2]
[361786382,1747786256466,-231.821242,0.00019986,2]
[361786383,1747786256476,-231.821242,0.00019986,2]
[361786384,1747786256486,-5607.553736,0.00019986,2]
[361786385,1747786256496,-5607.553736,0.00019986,2]
[361786386,1747786256506,-151.0,0.00019986,2]
[361786387,1747786256517,-502.61457,0.0002,2]
[361786388,1747786256527,-200.0,0.0002,2]
[361786389,1747786256537,-7057.66970805,0.0002,5]
[361786390,1747786256547,-181.877,0.0002,2]
[361786391,1747786256558,-181.877,0.0002,2]
[361786392,1747786256568,-245.060436,0.0002,2]
[361786393,1747786256580,-151.0,0.0002,2]
[361786394,1747786256591,-151.0,0.0002,2]
[361786395,1747786256602,-151.0,0.0002,2]
[361786396,1747786256613,-151.0,0.0002,2]
[361786397,1747786256623,-151.0,0.0002,2]
[361786398,1747786256633,-151.0,0.0002,2]
[361786399,1747786256643,-365.612112,0.0002,2]
[361786400,1747786256653,-365.612112,0.0002,2]
[361786401,1747786256663,-151.0,0.0002,2]
[361786402,1747786256673,-2179.569998,0.0002,2]
[361786403,1747786256684,-151.0,0.0002,2]
[361786404,1747786256695,-152.626135,0.0002,2]
[361786405,1747786256705,-1176.108541,0.0002,2]
[361786406,1747786256715,-1176.108541,0.0002,2]
[361786407,1747786256725,-3389.59059,0.0002,2]
[361786408,1747786256735,-3389.5906,0.0002,2]
[361786409,1747786256748,-3389.59059,0.0002,2]
[361786410,1747786256759,-3389.5906,0.0002,2]
[361786411,1747786256770,-3389.59059,0.0002,2]
[361786412,1747786256779,-3389.5906,0.0002,2]
[361786413,1747786256790,-1277.40054118,0.00020141,2]
[361786414,1747786256800,-324.25,0.00020187,2]
[361786415,1747786256811,-151.0,0.000202,2]
[361786416,1747786256821,-241.677827,0.000202,2]
[361786417,1747786256832,-12299.22221865,0.00020209,2]
[361786418,1747786256844,-151.0,0.00020476,2]
[361786419,1747786256854,-554.0,0.00020514,2]
[361786420,1747786256864,-150.0,0.00020547,2]
[361786421,1747786256875,-6832.0,0.00020597,2]
[361786422,1747786256886,-4037.0,0.00020597,2]
[361786423,1747786256896,-1015.127,0.00020597,2]
[361786424,1747786256906,-841.0,0.00020597,2]
[361786425,1747786256916,-161.773,0.00020597,2]
[361786426,1747786256926,-208.0,0.00020864,10]
[361786427,1747786256936,-828.0,0.00020977,2]
[361786428,1747786256946,-400.0,0.00021,2]
[361786429,1747786256955,-1277.40054118,0.00021176,4]
[361786430,1747786256965,-151.0,0.00021193,2]
[361786431,1747786256974,-300.906806,0.00021193,2]
[361786432,1747786256985,-300.906806,0.00021193,2]
[361786433,1747786256994,-151.0,0.00021193,2]
[361786434,1747786257004,-151.0,0.00021193,2]
[361786435,1747786257014,-159.969778,0.00021193,2]
[361786436,1747786257023,-159.969778,0.00021193,2]
[361786437,1747786257033,-266.062652,0.00021193,2]
[361786438,1747786257042,-266.062652,0.00021193,2]
[361786439,1747786257052,-151.0,0.00021912,2]
[361786440,1747786257062,-151.0,0.00021912,2]
[361786441,1747786257071,-151.0,0.00021912,2]
[361786442,1747786257081,-151.0,0.00021912,2]
[361786443,1747786257091,-150.0,0.00021917,2]
[361786444,1747786257101,-150.98,0.00021918,2]
[361786445,1747786257110,-500.0,0.00021918,2]
[361786446,1747786257121,-170.34,0.00021945,30]
[361786447,1747786257131,-151.0,0.00022148,7]
[361786448,1747786257142,-151.0,0.00022148,7]
[361786449,1747786257153,-151.0,0.00022148,7]
[361786450,1747786257163,-151.0,0.00022148,7]
[361786451,1747786257172,-153.756802,0.00022148,7]
[361786452,1747786257182,-153.756802,0.00022148,7]
[361786453,1747786257191,-151.0,0.00022148,7]
[361786454,1747786257201,-151.0,0.00022148,7]
[361786455,1747786257212,-151.0,0.00022148,7]
[361786456,1747786257223,-151.0,0.00022148,7]
[361786457,1747786257233,-151.0,0.00022148,7]
[361786458,1747786257243,-365.612112,0.00022148,7]
[361786459,1747786257253,-365.612112,0.00022148,7]
[361786460,1747786257263,-2179.569998,0.00022148,7]
[361786461,1747786257272,-151.0,0.00022148,7]
[361786462,1747786257282,-231.821242,0.00022148,7]
[361786463,1747786257292,-231.821242,0.00022148,7]
[361786464,1747786257301,-5607.553736,0.00022148,7]
[361786465,1747786257310,-5607.553736,0.00022148,7]
[361786466,1747786257320,-160.900395,0.00022148,7]
[361786467,1747786257329,-160.900395,0.00022148,7]
[361786468,1747786257339,-1207.156888,0.00022148,7]
[361786469,1747786257349,-1207.156888,0.00022148,7]
[361786470,1747786257359,-151.0,0.00022148,7]
[361786471,1747786257368,-151.0,0.00022163,7]
[361786472,1747786257378,-1176.108541,0.00022163,7]
[361786473,1747786257387,-1176.108541,0.00022163,7]
[361786474,1747786257398,-826.395756,0.00022163,7]
[361786475,1747786257408,-826.395756,0.00022163,7]
[361786476,1747786257418,-1277.40054118,0.0002221,6]
[361786477,1747786257428,-7398.25613365,0.00022326,2]
[361786478,1747786257438,-12865.11766238,0.00022326,2]
[361786479,1747786257449,-499.93,0.00022466,2]
[361786480,1747786257460,-153.479839,0.00022504,7]
[361786481,1747786257470,-151.0,0.00022504,7]
[361786482,1747786257480,-151.0,0.00022504,7]
[361786483,1747786257491,-320.427893,0.00022562,7]
[361786484,1747786257502,-320.427901,0.00022562,7]
[361786485,1747786257512,-450.0,0.00023,2]
[361786486,1747786257521,-170.08,0.00023014,2]
[361786487,1747786257531,-222.7525941,0.00023033,2]
[361786488,1747786257542,-150.0,0.00023057,2]
[361786489,1747786257552,-150.0,0.00023057,2]
[361786490,1747786257562,-150.183,0.00023057,2]
[361786491,1747786257572,-150.414,0.00023057,2]
[361786492,1747786257583,-939.686,0.00023057,2]
[361786493,1747786257593,-1308.0,0.00023057,2]
[361786494,1747786257603,-802.0,0.00023057,2]
[361786495,1747786257612,-771.857,0.00023057,2]
[361786496,1747786257622,-1255.0,0.00023057,2]
[361786497,1747786257632,-585.0,0.00023057,2]
[361786498,1747786257643,-1460.0,0.00023057,2]
[361786499,1747786257654,-920.0,0.00023057,2]
[361786500,1747786257665,-252.81243,0.00023057,7]
[361786501,1747786257675,-252.81243,0.00023057,7]
[361786502,1747786257685,-151.0,0.00023057,7]
[361786503,1747786257695,-151.0,0.00023057,7]
[361786504,1747786257707,-2014.219479,0.00023057,7]
[361786505,1747786257718,-151.0,0.00023057,7]
[361786506,1747786257728,-282.801059,0.00023057,7]
[361786507,1747786257739,-314.957482,0.00023057,7]
[361786508,1747786257754,-314.957482,0.00023057,7]
[361786509,1747786257763,-151.0,0.00023057,7]
[361786510,1747786257773,-151.0,0.00023057,7]
[361786511,1747786257783,-151.0,0.00023057,7]
[361786512,1747786257794,-151.0,0.00023057,7]
[361786513,1747786257803,-291.768511,0.00023057,7]
[361786514,1747786257813,-291.768511,0.00023057,7]
[361786515,1747786257823,-590.227762,0.00023057,7]
[361786516,1747786257833,-590.227762,0.00023057,7]
[361786517,1747786257843,-177.280068,0.00023057,7]
[361786518,1747786257852,-177.280068,0.00023057,7]
[361786519,1747786257862,-296.681335,0.00023057,7]
[361786520,1747786257871,-1250.677821,0.00023057,7]
[361786521,1747786257881,-1250.677821,0.00023057,7]
[361786522,1747786258012,-828.0,0.00023241,2]
[361786523,1747786258023,-1277.40054118,0.00023245,8]
[361786524,1747786258032,-151.0,0.00023245,7]
[361786525,1747786258042,-342.967213,0.00023245,7]
[361786526,1747786258051,-342.967205,0.00023245,7]
[361786527,1747786258062,-187.284156,0.00023245,7]
[361786528,1747786258071,-187.28416,0.00023245,7]
[361786529,1747786258081,-175.699588,0.00023245,7]
[361786530,1747786258090,-175.699582,0.00023245,7]
[361786531,1747786258100,-150.0,0.00023287,2]
[361786532,1747786258109,-6268.77,0.00023368,2]
[361786533,1747786258119,-804.92,0.00023425,2]
[361786534,1747786258128,-1609.84,0.00023425,2]
[361786535,1747786258138,-916.32,0.00023425,2]
[361786536,1747786258147,-552.0,0.00023514,2]
[361786537,1747786258156,-6832.0,0.00023597,2]
[361786538,1747786258166,-880.0,0.00023597,2]
[361786539,1747786258177,-841.0,0.00023597,2]
[361786540,1747786258186,-154.0,0.00023597,2]
[361786541,1747786258196,-160.48,0.00023836,2]
[361786542,1747786258205,-151.0,0.0002404,7]
[361786543,1747786258217,-409.539964,0.00024058,7]
[361786544,1747786258228,-409.539956,0.00024058,7]
[361786545,1747786258238,-151.0,0.00024058,7]
[361786546,1747786258249,-151.0,0.00024058,7]
[361786547,1747786258259,-185.75088,0.00024058,7]
[361786548,1747786258269,-151.0,0.00024107,7]
[361786549,1747786258278,-5517.949549,0.00024198,2]
[361786550,1747786258288,-228.396671,0.00024228,7]
[361786551,1747786258297,-228.396677,0.00024228,7]
[361786552,1747786258306,-151.0,0.00024228,7]
[361786553,1747786258317,-151.0,0.00024228,7]
[361786554,1747786258326,-151.0,0.00024228,7]
[361786555,1747786258336,-151.0,0.00024228,7]
[361786556,1747786258345,-151.0,0.00024228,7]
[361786557,1747786258355,-1277.40054118,0.00024279,10]
[361786558,1747786258364,-151.0,0.00024291,7]
[361786559,1747786258373,-268.852666,0.00024291,7]
[361786560,1747786258385,-804.92,0.00024384,2]
[361786561,1747786258398,-289.94356,0.00024384,7]
[361786562,1747786258409,-176.491914,0.00024384,7]
[361786563,1747786258419,-365.612112,0.00024384,7]
[361786564,1747786258429,-365.612112,0.00024384,7]
[361786565,1747786258438,-2179.569998,0.00024384,7]
[361786566,1747786258448,-151.0,0.00024384,7]
[361786567,1747786258457,-231.821242,0.00024384,7]
[361786568,1747786258466,-231.821242,0.00024384,7]
[361786569,1747786258476,-5607.553736,0.00024384,7]
[361786570,1747786258485,-5607.553736,0.00024384,7]
[361786571,1747786258494,-151.0,0.00024384,7]
[361786572,1747786258504,-208.0,0.00024422,15]
[361786573,1747786258513,-150.0,0.00024657,2]
[361786574,1747786258523,-176.68700699,0.000247,2]
[361786575,1747786258532,-151.0,0.00024783,7]
[361786576,1747786258542,-151.0,0.00024783,7]
[361786577,1747786258551,-2014.219479,0.00024783,7]
[361786578,1747786258560,-151.0,0.00024783,7]
[361786579,1747786258572,-151.0,0.00024783,7]
[361786580,1747786258583,-151.0,0.00024783,7]
[361786581,1747786258593,-314.957482,0.00024783,7]
[361786582,1747786258603,-314.957482,0.00024783,7]
[361786583,1747786258613,-151.0,0.00024783,7]
[361786584,1747786258623,-151.0,0.00024783,7]
[361786585,1747786258632,-153.756802,0.00024783,7]
[361786586,1747786258642,-153.756802,0.00024783,7]
[361786587,1747786258653,-151.0,0.00024783,7]
[361786588,1747786258662,-151.0,0.00024783,7]
[361786589,1747786258672,-365.612112,0.00024783,7]
[361786590,1747786258682,-365.612112,0.00024783,7]
[361786591,1747786258691,-151.0,0.00024783,7]
[361786592,1747786258701,-2179.569998,0.00024783,7]
[361786593,1747786258710,-151.0,0.00024783,7]
[361786594,1747786258721,-182.436208,0.00024783,7]
[361786595,1747786258730,-231.821242,0.00024783,7]
[361786596,1747786258740,-23884.1987106,0.00024783,2]
[361786597,1747786258756,-231.821242,0.00024783,7]
[361786598,1747786258767,-5607.553736,0.00024783,7]
[361786599,1747786258776,-5607.553736,0.00024783,7]
[361786600,1747786258787,-160.900395,0.00024783,7]
[361786601,1747786258799,-1176.108541,0.00024783,7]
[361786602,1747786258808,-160.900395,0.00024783,7]
[361786603,1747786258818,-1207.156888,0.00024783,7]
[361786604,1747786258829,-1176.108541,0.00024783,7]
[361786605,1747786258839,-1207.156888,0.00024783,7]
[361786606,1747786258850,-151.0,0.00024783,7]
[361786607,1747786258860,-1765.8628996,0.00024783,2]
[361786608,1747786258870,-1610.0316091,0.00024783,2]
[361786609,1747786258879,-2677.2568616,0.00024783,2]
[361786610,1747786258888,-2440.9982076,0.00024783,2]
[361786611,1747786258898,-1497.4954324,0.00024783,2]
[361786612,1747786258907,-1365.3466422,0.00024783,2]
[361786613,1747786258919,-826.395756,0.00024783,7]
[361786614,1747786258932,-826.395756,0.00024783,7]
[361786615,1747786258942,-151.0,0.000248,7]
[361786616,1747786258954,-151.0,0.000248,7]
[361786617,1747786258964,-151.0,0.000248,7]
[361786618,1747786258974,-151.0,0.000248,7]
[361786619,1747786258984,-151.0,0.000248,7]
[361786620,1747786258993,-2014.219479,0.000248,7]
[361786621,1747786259003,-151.0,0.000248,7]
[361786622,1747786259013,-151.0,0.000248,7]
[361786623,1747786259023,-151.0,0.000248,7]
[361786624,1747786259033,-151.0,0.000248,7]
[361786625,1747786259042,-151.0,0.000248,7]
[361786626,1747786259052,-151.0,0.000248,7]
[361786627,1747786259063,-314.957482,0.000248,7]
[361786628,1747786259073,-314.957482,0.000248,7]
[361786629,1747786259083,-151.0,0.000248,7]
[361786630,1747786259092,-151.0,0.000248,7]
[361786631,1747786259103,-153.756802,0.000248,7]
[361786632,1747786259118,-153.756802,0.000248,7]
[361786633,1747786259128,-151.0,0.000248,7]
[361786634,1747786259137,-151.0,0.000248,7]
[361786635,1747786259147,-151.0,0.000248,7]
[361786636,1747786259157,-2529.87,0.000248,7]
[361786637,1747786259166,-160.900395,0.000248,7]
[361786638,1747786259176,-1176.108541,0.000248,7]
[361786639,1747786259189,-160.900395,0.000248,7]
[361786640,1747786259200,-1207.156888,0.000248,7]
[361786641,1747786259209,-1176.108541,0.000248,7]
[361786642,1747786259219,-1207.156888,0.000248,7]
[361786643,1747786259228,-151.0,0.000248,7]
[361786644,1747786259238,-151.0,0.000248,7]
[361786645,1747786259248,-300.906806,0.000248,7]
[361786646,1747786259258,-300.906806,0.000248,7]
[361786647,1747786259268,-300.906806,0.000248,7]
[361786648,1747786259278,-300.906806,0.000248,7]
[361786649,1747786259287,-151.0,0.000248,7]
[361786650,1747786259296,-151.0,0.000248,7]
[361786651,1747786259306,-151.0,0.000248,7]
[361786652,1747786259315,-154.575925,0.000248,7]
[361786653,1747786259325,-159.969778,0.000248,7]
[361786654,1747786259334,-159.969778,0.000248,7]
[361786655,1747786259344,-159.969778,0.000248,7]
[361786656,1747786259354,-159.969778,0.000248,7]
[361786657,1747786259363,-266.062652,0.000248,7]
[361786658,1747786259373,-266.062652,0.000248,7]
[361786659,1747786259383,-266.062652,0.000248,7]
[361786660,1747786259393,-266.062652,0.000248,7]
[361786661,1747786259403,-151.0,0.000248,7]
[361786662,1747786259413,-151.0,0.000248,7]
[361786663,1747786259423,-151.0,0.000248,7]
[361786664,1747786259436,-151.0,0.000248,7]
[361786665,1747786259446,-151.0,0.000248,7]
[361786666,1747786259455,-151.0,0.000248,7]